fUSD/lending_fUSD_20240613
["ID","MTS","AMOUNT","RATE_DAILY","PERIOD"]
[329359835,1718277149324,-718.02,0.00026417,3]
[329359836,1718277149338,-46.54532209,0.00029313,2]
[329359837,1718277149350,-1088.24925049,0.00029314,3]
[329359838,1718277149390,-500.0,0.00024496,2]
[329359839,1718277149406,-500.0,0.0002493,3]
[329359840,1718277149419,-95.00074951,0.00029314,3]
[329359841,1718277149434,-704.44,0.00029314,3]
[329359842,1718277149454,-500.0,0.00029314,3]
[329359843,1718277149470,-1012.60850892,0.00029314,3]
[329359844,1718277149633,-241.3882198,0.00024495,2]
[329359845,1718277149647,-500.0,0.0002477,3]
[329359846,1718277149665,-500.0,0.00025044,3]
[329359847,1718277149676,-176.04,0.00025204,3]
[329359848,1718277149692,-500.0,0.00025595,3]
[329359849,1718277149705,-500.0,0.00025866,3]
[329359850,1718277149717,-646.17,0.0002614,3]
[329359851,1718277149729,-718.02,0.00026691,3]
[329359852,1718277149744,-718.02,0.00026965,3]
[329359853,1718277149757,-4839.55149108,0.00029314,3]
[329359854,1718277149770,-2891.73,0.00029314,3]
[329359855,1718277149784,-1318.26,0.00029314,3]
[329359856,1718277149798,-2337.62,0.00029314,3]
[329359857,1718277149812,-1185.47,0.00029314,3]
[329359858,1718277149823,-1475.74,0.00029314,3]
[329359859,1718277149839,-572.37,0.00029314,3]
[329359860,1718277149860,-500.0,0.00029314,2]
[329359861,1718277149876,-153.29131969,0.00029321,2]
[329359862,1718277149889,-154.533978,0.00029322,2]
[329359863,1718277149902,-2261.50005,0.00029322,2]
[329359864,1718277149915,-195.896619,0.00029322,2]
[329359865,1718277149928,-2174.611811,0.00029322,2]
[329359866,1718277149942,-2252.515979,0.00029322,2]
[329359867,1718277149953,-543.6482,0.00029322,2]
[329359868,1718277149965,-319.139473,0.00029322,2]
[329359869,1718277149976,-153.655824,0.00029322,2]
[329359870,1718277149988,-334.408129,0.00029322,2]
[329359871,1718277150001,-5432.91890643,0.00029322,2]
[329359872,1718277150019,-543.338508,0.00029322,2]
[329359873,1718277150046,-507.69204984,0.00024498,2]
[329359874,1718277150059,-500.0,0.00025318,3]
[329359875,1718277150070,-326.09790357,0.00029322,2]
[329359876,1718277150082,-2100.785106,0.00029322,2]
[329359877,1718277150094,-173.209281,0.00029322,2]
[329359878,1718277150107,-3684.07070666,0.00029322,2]
[329359879,1718277150121,-463.09467427,0.00029322,2]
[329359880,1718277150156,-445.05474091,0.00025592,3]
[329359881,1718277150184,-54.94525909,0.00025592,3]
[329359882,1718277150196,-500.0,0.00025866,3]
[329359883,1718277150208,-718.02,0.00027239,3]
[329359884,1718277150220,-718.02,0.00027513,3]
[329359885,1718277150231,-4304.56444207,0.00029322,2]
[329359886,1718277150261,-219.963226,0.00029322,2]
[329359887,1718277150273,-343.039361,0.00029322,2]
[329359888,1718277150284,-8147.185355,0.00029322,2]
[329359889,1718277150297,-182.536433,0.00029322,2]
[329359890,1718277150308,-182.601142,0.00029322,2]
[329359891,1718277150319,-181.687741,0.00029322,2]
[329359892,1718277150330,-1439.37668532,0.00029331,2]
[329359893,1718277150341,-5000.0,0.00029334,2]
[329359894,1718277150353,-303.0,0.0002934,2]
[329359895,1718277150364,-156.17044263,0.0002934,2]
[329359896,1718277150376,-4425.4636013,0.00029352,2]
[329359897,1718277150389,-252.3963987,0.00029352,2]
[329359898,1718277150402,-157.96553431,0.00029369,2]
[329359899,1718277150415,-152.1899555,0.00029378,2]
[329359900,1718277150428,-526.20582968,0.00029378,2]
[329359901,1718277150442,-183.66453772,0.00029391,2]
[329359902,1718277150460,-580.33546228,0.00029391,2]
[329359903,1718277150476,-444.25443382,0.00029391,2]
[329359904,1718277150509,-226.76270483,0.000201,2]
[329359905,1718277150521,-500.0,0.0002614,3]
[329359906,1718277150532,-524.81830322,0.00027787,3]
[329359907,1718277150722,-173.77,0.00026414,3]
[329359908,1718277150734,-193.20169678,0.00027787,3]
[329359909,1718277150746,-202.74556618,0.00029391,2]
[329359910,1718277150758,-177.68971506,0.000294,2]
[329359911,1718277150772,-505.14,0.000294,2]
[329359912,1718277150785,-292.064,0.000294,2]
[329359913,1718277150884,-718.02,0.00028061,3]
[329359914,1718277150897,-633.44518526,0.000294,2]
[329359915,1718277150909,-157.29516,0.000294,2]
[329359916,1718277150923,-432.95585059,0.000294,2]
[329359917,1718277150937,-218.51742701,0.00029409,2]
[329359918,1718277150950,-152.96556495,0.00029418,2]
[329359919,1718277150962,-1226.80346719,0.00029426,2]
[329359920,1718277150977,-488.8217922,0.00029426,2]
[329359921,1718277151005,-500.0,0.00024382,2]
[329359922,1718277151016,-302.64257861,0.00029426,2]
[329359923,1718277151042,-718.02,0.00028335,3]
[329359924,1718277151056,-2981.732162,0.00029426,2]
[329359925,1718277151067,-628.5,0.00029428,3]
[329359926,1718277151080,-877.35,0.00029428,3]
[329359927,1718277151092,-1070.7,0.00029428,3]
[329359928,1718277151104,-493.1071521,0.00029428,3]
[329359929,1718277151116,-871.84,0.00029428,3]
[329359930,1718277151128,-1196.79,0.00029428,3]
[329359931,1718277151142,-2448.85,0.00029428,3]
[329359932,1718277151153,-748.9,0.00029428,3]
[329359933,1718277151165,-1584.05,0.00029428,3]
[329359934,1718277151176,-875.77,0.00029428,3]
[329359935,1718277151188,-896.33,0.00029428,3]
[329359936,1718277151201,-1393.21,0.00029428,3]
[329359937,1718277151213,-712.29,0.00029428,3]
[329359938,1718277151226,-3021.74,0.00029428,3]
[329359939,1718277151263,-1592.21,0.00029428,3]
[329359940,1718277151274,-2955.13,0.00029428,3]
[329359941,1718277151287,-1351.15,0.00029428,3]
[329359942,1718277151298,-1489.31,0.00029428,3]
[329359943,1718277151311,-1097.22,0.00029428,3]
[329359944,1718277151323,-1841.9,0.00029428,3]
[329359945,1718277151334,-246.55118205,0.00029428,3]
[329359946,1718277151360,-500.0,0.00024496,2]
[329359947,1718277151371,-253.44881795,0.00029428,3]
[329359948,1718277151382,-944.05118205,0.00029428,3]
[329359949,1718277151427,-500.0,0.00024496,2]
[329359950,1718277151439,-500.0,0.00024499,2]
[329359951,1718277151451,-500.0,0.00024656,2]
[329359952,1718277151465,-500.0,0.0002477,3]
[329359953,1718277151476,-718.02,0.00028609,3]
[329359954,1718277151498,-618.09881795,0.00029428,3]
[329359955,1718277151510,-500.0,0.00029428,3]
[329359956,1718277151524,-199.33018549,0.00029429,3]
[329359957,1718277151560,-500.0,0.00024773,3]
[329359958,1718277151573,-500.0,0.0002493,3]
[329359959,1718277151588,-3360.93,0.00029429,3]
[329359960,1718277151661,-500.0,0.00024497,2]
[329359961,1718277151680,-210.33,0.0002477,3]
[329359962,1718277151865,-289.67,0.0002477,3]
[329359963,1718277151880,-500.0,0.00025044,3]
[329359964,1718277151893,-500.0,0.00025044,3]
[329359965,1718277151905,-57.03,0.00025047,3]
[329359966,1718277151921,-324.95834368,0.00025047,3]
[329359990,1718278031143,-795.82456302,0.00018899,2]
[329359991,1718278031173,-127.78015599,0.00019725,2]
[329360024,1718278233194,-300.0,0.00019725,2]
[329360025,1718278233205,-150.0,0.00019725,2]
[329360026,1718278233217,-1000.0,0.00019977,2]
[329360027,1718278233227,-226.76270483,0.000201,2]
[329360028,1718278233240,-1000.0,0.00020329,2]
[329360029,1718278233254,-390.15,0.00020717,2]
[329360030,1718278233266,-461.61004361,0.00020839,2]
[329360031,1718278233304,-129.60633671,0.00020839,2]
[329360032,1718278233320,-735.70983458,0.00021,2]
[329360033,1718278233725,-514.29016542,0.00021,2]
[329360034,1718278233743,-337.41826255,0.00021,2]
[329360035,1718278234083,-162.57173745,0.00021,2]
[329360036,1718278234094,-1088.3,0.00021,2]
[329360037,1718278234128,-284.06,0.00021,2]
[329360038,1718278234146,-1343.15,0.00021,2]
[329360039,1718278234159,-121.91826255,0.00021,2]
[329360040,1718278234177,-246.23173745,0.00021,2]
[329360041,1718278234196,-24.82454957,0.00021,2]
[329360042,1718278234238,-368.36047548,0.00021,2]
[329360043,1718278234266,-397.82076205,0.00021,2]
[329360044,1718278234290,-277.78198961,0.00021,2]
[329360045,1718278234503,-2798.80222329,0.00021,2]
[329360046,1718278234526,-150.99,0.00021,2]
[329360047,1718278234539,-550.0,0.000213,2]
[329360048,1718278234554,-979.82946112,0.000214,2]
[329360049,1718278234570,-270.26587227,0.000214,2]
[329360050,1718278234592,-1030.90466661,0.000214,2]
[329360051,1718278234605,-298.37936112,0.00021942,2]
[329360060,1718278239579,-255.06953445,0.00021942,2]
[329360061,1718278239595,-197.91965825,0.00021942,2]
[329360062,1718278239628,-2725.73,0.00021942,2]
[329360063,1718278239674,-511.28,0.00022435,2]
[329360064,1718278239692,-400.0,0.00022445,2]
[329360065,1718278239705,-250.0,0.00022457,2]
[329360066,1718278239717,-585.25,0.00022508,2]
[329360067,1718278239731,-250.0,0.00022511,2]
[329360068,1718278239766,-250.0,0.00022623,2]
[329360069,1718278239781,-174.6,0.00022672,2]
[329360070,1718278239803,-156.16,0.0002282,2]
[329360071,1718278239832,-390.15,0.00022981,2]
[329360072,1718278239846,-1300.0,0.00023,2]
[329360073,1718278239859,-250.0,0.00023017,2]
[329360074,1718278239871,-600.0,0.00023387,2]
[329360075,1718278239889,-241.3882198,0.00024008,2]
[329360076,1718278239903,-161.51,0.00024384,2]
[329360077,1718278239916,-256.18,0.00024384,2]
[329360078,1718278239931,-2940.1145,0.00024396,2]
[329360079,1718278239944,-382.73488542,0.00024398,2]
[329360080,1718278239958,-205.04112632,0.00024398,2]
[329360081,1718278239974,-4066.30684285,0.00024398,2]
[329360082,1718278240000,-245.2031,0.00024399,2]
[329360083,1718278240030,-1000.0,0.00024399,2]
[329360084,1718278240060,-16866.5544,0.000244,2]
[329360085,1718278240078,-1025.45622107,0.000244,2]
[329360086,1718278240098,-544.57763909,0.000244,2]
[329360087,1718278240194,-876.16594478,0.000244,2]
[329360089,1718278240286,-1235.47644,0.000244,2]
[329360092,1718278240365,-328.92787868,0.000244,2]
[329360094,1718278240898,-805.59999999,0.000244,2]
[329360095,1718278240926,-1017.8135551,0.000244,2]
[329360096,1718278241131,-275.96458678,0.000244,2]
[329360097,1718278241148,-579.20483451,0.000244,2]
[329360098,1718278241161,-500.0,0.00024496,2]
[329360099,1718278241220,-502.37825479,0.00024496,2]
[329360100,1718278241235,-500.0,0.00024496,2]
[329360101,1718278241249,-170.03951898,0.00024499,2]
[329360102,1718278241269,-500.0,0.00024499,2]
[329360103,1718278241287,-502.27144762,0.00024499,2]
[329360104,1718278241302,-555.1273593,0.00024499,2]
[329360105,1718278241320,-500.0,0.00024499,2]
[329360106,1718278241333,-501.57414411,0.00024499,2]
[329360107,1718278241352,-272.90448744,0.00024499,2]
[329360119,1718278243503,-227.5868553,0.00024499,2]
[329360120,1718278243517,-502.75411094,0.00024499,2]
[329360121,1718278243533,-257.25996566,0.00024499,2]
[329360122,1718278243549,-200.8586783,0.00024499,2]
[329360123,1718278243568,-518.50778142,0.00024499,2]
[329360124,1718278243606,-500.0,0.00024499,2]
[329360125,1718278243636,-510.12199306,0.00024499,2]
[329360126,1718278243670,-519.19582435,0.00024499,2]
[329360127,1718278243720,-505.98655806,0.00024499,2]
[329360128,1718278243773,-502.68487363,0.00024499,2]
[329360129,1718278243792,-501.81940929,0.00024499,2]
[329360130,1718278243805,-513.19939145,0.00024499,2]
[329360131,1718278243819,-505.69998205,0.00024499,2]
[329360132,1718278243847,-504.44275395,0.00024499,2]
[329360133,1718278243902,-507.32275242,0.00024499,2]
[329360134,1718278243931,-539.38693023,0.00024499,2]
[329360135,1718278243956,-502.9402197,0.00024499,2]
[329360136,1718278243996,-393.62489258,0.00024499,2]
[329360137,1718278244025,-503.95206648,0.00024499,2]
[329360138,1718278244046,-493.41496113,0.00024499,2]
[329360139,1718278244097,-13.78443151,0.00024499,2]
[329360140,1718278244112,-507.8838956,0.00024499,2]
[329360141,1718278244129,-299.01336665,0.00024499,2]
[329360142,1718278244747,-234.05568072,0.00024499,2]
[329360143,1718278244769,-509.27342496,0.00024499,2]
[329360144,1718278244788,-528.49129051,0.00024499,2]
[329360145,1718278244807,-508.74209395,0.00024499,2]
[329360146,1718278244825,-353.40159843,0.00024499,2]
[329360147,1718278244836,-269.21829599,0.00024499,2]
[329360148,1718278244847,-500.0,0.00024499,2]
[329360149,1718278244858,-532.10957603,0.00024499,2]
[329360150,1718278244880,-481.71522863,0.00024499,2]
[329360151,1718278244895,-505.02139411,0.00024499,2]
[329360152,1718278244924,-500.0,0.00024499,2]
[329360153,1718278244939,-505.58987356,0.00024499,2]
[329360154,1718278244960,-499.05576376,0.00024499,2]
[329360155,1718278244975,-500.0,0.00024499,2]
[329360156,1718278245000,-505.05832155,0.00024499,2]
[329360157,1718278245013,-500.0,0.00024499,2]
[329360158,1718278245058,-500.0,0.00024499,2]
[329360159,1718278245070,-505.97658899,0.00024499,2]
[329360160,1718278245085,-508.21164377,0.00024499,2]
[329360161,1718278245097,-509.06553633,0.00024499,2]
[329360162,1718278245108,-518.25754844,0.00024499,2]
[329360163,1718278245120,-502.56368386,0.00024499,2]
[329360164,1718278245131,-500.0,0.00024499,2]
[329360165,1718278245145,-500.0,0.00024499,2]
[329360166,1718278245157,-508.53900546,0.00024499,2]
[329360167,1718278245169,-527.80206867,0.00024499,2]
[329360168,1718278245184,-510.51416263,0.00024499,2]
[329360169,1718278245195,-500.0,0.00024499,2]
[329360170,1718278245206,-502.12409581,0.00024499,2]
[329360171,1718278245218,-497.57258311,0.00024499,2]
[329360172,1718278245230,-500.0,0.00024499,2]
[329360173,1718278245246,-339.93587213,0.00024499,2]
[329360174,1718278245266,-507.90806261,0.00024499,2]
[329360175,1718278245277,-456.51474965,0.00024499,2]
[329360176,1718278245289,-501.041103,0.00024499,2]
[329360177,1718278245328,-505.01004527,0.00024499,2]
[329360178,1718278245347,-626.26897551,0.00024499,2]
[329360179,1718278245373,-507.41053193,0.00024499,2]
[329360180,1718278245404,-504.21291334,0.00024499,2]
[329360181,1718278245441,-503.27712159,0.00024499,2]
[329360182,1718278245465,-500.0,0.00024499,2]
[329360183,1718278245476,-500.0,0.00024499,2]
[329360184,1718278245504,-291.17776677,0.00024499,2]
[329360185,1718278245529,-500.0,0.00024499,2]
[329360186,1718278245554,-500.0,0.00024499,2]
[329360187,1718278245574,-180.0,0.0002476,2]
[329360188,1718278245605,-500.0,0.00024769,3]
[329360189,1718278245623,-500.0,0.00024769,3]
[329360190,1718278245654,-500.0,0.00024769,3]
[329360191,1718278245666,-500.0,0.00024769,3]
[329360192,1718278245679,-500.0,0.00024769,3]
[329360193,1718278245711,-500.0,0.00024769,3]
[329360194,1718278245726,-500.0,0.00024769,3]
[329360195,1718278245758,-500.0,0.00024769,3]
[329360196,1718278245776,-500.0,0.00024769,3]
[329360197,1718278245789,-500.0,0.00024769,3]
[329360198,1718278245801,-500.0,0.00024769,3]
[329360199,1718278245813,-628.19,0.00024769,3]
[329360200,1718278245840,-500.0,0.00024769,3]
[329360201,1718278245922,-500.0,0.00024769,3]
[329360202,1718278245966,-500.0,0.00024769,3]
[329360203,1718278245979,-500.0,0.00024769,3]
[329360204,1718278246019,-500.0,0.00024769,3]
[329360205,1718278246035,-500.0,0.00024769,3]
[329360206,1718278246056,-500.0,0.00024769,3]
[329360207,1718278246088,-500.0,0.00024769,3]
[329360208,1718278246100,-500.0,0.00024769,3]
[329360209,1718278246116,-500.0,0.00024769,3]
[329360210,1718278246133,-500.0,0.00024769,3]
[329360211,1718278246151,-334.29862577,0.00024769,3]
[329360212,1718278246204,-165.70137423,0.00024769,3]
[329360213,1718278246227,-500.0,0.00024769,3]
[329360214,1718278246239,-500.0,0.00024769,3]
[329360215,1718278246256,-500.0,0.00024769,3]
[329360216,1718278246270,-500.0,0.00024769,3]
[329360217,1718278246289,-500.0,0.00024769,3]
[329360218,1718278246319,-500.0,0.00024769,3]
[329360219,1718278246338,-500.0,0.00024769,3]
[329360220,1718278246357,-177.93900381,0.00024769,3]
[329360221,1718278246370,-500.0,0.00024769,3]
[329360222,1718278246402,-500.0,0.00024769,3]
[329360223,1718278246415,-500.0,0.00024769,3]
[329360224,1718278246437,-500.0,0.00024769,3]
[329360225,1718278246468,-500.0,0.00024769,3]
[329360226,1718278246523,-500.0,0.00024769,3]
[329360227,1718278246549,-500.0,0.00024769,3]
[329360228,1718278246577,-500.0,0.00024769,3]
[329360229,1718278246593,-500.0,0.00024769,3]
[329360230,1718278246642,-150.0,0.00024769,3]
[329360231,1718278246655,-500.0,0.00024769,3]
[329360232,1718278246672,-500.0,0.00024769,3]
[329360233,1718278246685,-500.0,0.00024769,3]
[329360234,1718278246702,-500.0,0.00024769,3]
[329360235,1718278246715,-572.32,0.00024769,3]
[329360236,1718278246737,-500.0,0.00024769,3]
[329360237,1718278246748,-500.0,0.00024769,3]
[329360238,1718278246766,-500.0,0.00024769,3]
[329360239,1718278246785,-500.0,0.00024769,3]
[329360240,1718278246823,-505.94,0.00024769,3]
[329360241,1718278246838,-500.0,0.00024769,3]
[329360242,1718278246849,-500.0,0.00024769,3]
[329360243,1718278246868,-625.27,0.00024769,3]
[329360244,1718278246883,-500.0,0.00024769,3]
[329360245,1718278246916,-592.32,0.00024769,3]
[329360246,1718278246940,-500.0,0.00024769,3]
[329360247,1718278246957,-500.0,0.00024769,3]
[329360248,1718278246974,-500.0,0.00024769,3]
[329360249,1718278247001,-601.59,0.00024769,3]
[329360250,1718278247032,-500.0,0.00024769,3]
[329360251,1718278247049,-554.66,0.00024769,3]
[329360252,1718278247061,-500.0,0.00024769,3]
[329360253,1718278247072,-500.0,0.00024769,3]
[329360254,1718278247095,-373.42795186,0.00024769,3]
[329360255,1718278247112,-500.0,0.00024769,3]
[329360256,1718278247146,-500.0,0.00024769,3]
[329360257,1718278247158,-500.0,0.00024769,3]
[329360258,1718278247175,-500.0,0.00024769,3]
[329360259,1718278247198,-500.0,0.00024769,3]
[329360260,1718278247221,-500.0,0.00024769,3]
[329360261,1718278247234,-500.0,0.00024769,3]
[329360262,1718278247246,-500.0,0.00024769,3]
[329360263,1718278247257,-500.0,0.00024769,3]
[329360264,1718278247269,-682.27,0.00024769,3]
[329360265,1718278247288,-582.63,0.00024769,3]
[329360266,1718278247299,-292.50535851,0.00024769,3]
[329360267,1718278247543,-0.00098141,0.00024769,3]
[329360268,1718278247813,-473.50366008,0.00024769,3]
[329360269,1718278247826,-484.1023354,0.00024769,3]
[329360270,1718278258062,155.0,0.00024768,60]
[329360271,1718278272034,155.0,0.00024529,60]
[329360272,1718278296019,155.0,0.00024529,60]
[329360273,1718278312017,155.0,0.00024529,60]
[329360279,1718278330043,155.0,0.00024529,60]
[329360280,1718278348070,155.0,0.00024529,60]
[329360281,1718278366025,155.0,0.00024529,60]
[329360282,1718278492830,-79320.0,0.00014,2]
[329360283,1718278531627,10019.16418405,0.000101,2]
[329360338,1718279234167,-167.96297322,0.000139,2]
[329360339,1718279234229,-479.79222844,0.000139,2]
[329360340,1718279234276,-152.36,0.0001399,2]
[329360341,1718279234313,-152.36,0.0001399,2]
[329360342,1718279234342,-165.17737501,0.0001399,2]
[329360343,1718279234380,-152.36,0.0001399,2]
[329360344,1718279234410,-152.36,0.0001399,2]
[329360345,1718279234439,-152.36,0.0001399,2]
[329360346,1718279234468,-152.36,0.0001399,2]
[329360347,1718279234499,-152.36,0.0001399,2]
[329360348,1718279234530,-152.36,0.0001399,2]
[329360349,1718279234562,-9034.38535939,0.00014,2]
[329360371,1718279433698,-152.37,0.0001399,2]
[329360372,1718279433717,-152.37,0.0001399,2]
[329360373,1718279433754,-152.37,0.0001399,2]
[329360374,1718279433769,-300.0,0.00013999,2]
[329360375,1718279433786,-4429.20604866,0.00014,2]
[329360376,1718279433808,-478.1956183,0.00014,2]
[329360377,1718279433840,-486.70279003,0.00014,2]
[329360378,1718279434049,-840.52331929,0.00014,2]
[329360379,1718279434248,-8469.70526518,0.00014,2]
[329360380,1718279434272,-3718.33546248,0.00014,2]
[329360381,1718279434549,-530.14499983,0.00014,2]
[329360382,1718279434569,-11227.9959737,0.00014,2]
[329360383,1718279434625,-3982.79859401,0.00014,2]
[329360384,1718279434885,-2112.18078932,0.00014,2]
[329360445,1718279439112,-7.23129016,0.00014,2]
[329360461,1718279445521,-393.19965,0.00014,2]
[329360465,1718279446344,-117041.10837378,0.00014,2]
[329360472,1718279446780,-26710.87231418,0.00014,2]
[329360492,1718279447736,-278.8119108,0.00014,2]
[329360493,1718279447835,-45000.000005,0.00014,2]
[329360494,1718279448754,-532.17,0.00014,2]
[329360673,1718280566501,-591.22694692,0.00013439,2]
[329360674,1718280571182,-35.30132414,0.00013439,2]
[329360682,1718280634031,-158.9647594,0.00013636,2]
[329360683,1718280634049,-202.70403289,0.00013832,2]
[329360684,1718280634069,-4419.35388907,0.0001386,2]
[329360710,1718280639555,-1906.27756987,0.0001386,2]
[329360711,1718280639632,-548.47699096,0.0001386,2]
[329360712,1718280639742,-23372.01903979,0.0001386,2]
[329360713,1718280639781,-319.86148564,0.000139,2]
[329360714,1718280639808,-191.54261474,0.000139,2]
[329360715,1718280639820,-630.5367656,0.000139,2]
[329360716,1718280639863,-7979.88935019,0.000139,2]
[329360717,1718280639881,-382.13509686,0.00013967,2]
[329360718,1718280639893,-152.37,0.0001399,2]
[329360719,1718280639906,-158.39893901,0.00013999,2]
[329360720,1718280639918,-1009.32521494,0.00013999,5]
[329360721,1718280639933,-108847.32482287,0.00014,2]
[329360722,1718280640348,-2330.71214622,0.00014,2]
[329360723,1718280640648,-13386.66684674,0.00014,2]
[329360902,1718280644405,-2170.08975932,0.00014,2]
[329360903,1718280644516,-355.72425126,0.00014,2]
[329360904,1718280645323,-10132.37942444,0.00014,2]
[329360905,1718280645337,-67011.52271762,0.00014,2]
[329360906,1718280646097,-8178.97535334,0.00014,2]
[329360907,1718280646170,-2409.38113538,0.00014,2]
[329360915,1718280647157,-670719.82308601,0.00014,2]
[329360916,1718280647186,-832849.1293532,0.00014,2]
[329360917,1718280647272,-1954.10039998,0.00014,2]
[329360933,1718280648592,-69986.207102,0.00014,2]
[329360934,1718280648606,-677.755,0.00014,2]
[329360935,1718280648621,-5828.49695345,0.00014,2]
[329360936,1718280649597,-1701.55817598,0.00014,2]
[329360967,1718280699945,534.78,0.000274,60]
[329360972,1718281016364,-193.24307856,0.00013889,2]
[329360973,1718281016403,-274.18,0.0001389,3]
[329360974,1718281016434,-300.0,0.00013899,2]
[329360975,1718281016463,-167.59978795,0.000139,2]
[329360976,1718281016495,-327.53502879,0.000139,2]
[329360977,1718281016520,-213.24099042,0.000139,2]
[329360978,1718281016564,-537.93879391,0.00013998,2]
[329360979,1718281016597,-155.36770324,0.00013998,2]
[329360980,1718281016626,-300.0,0.00013999,2]
[329360981,1718281016675,-1129.62206954,0.00013999,5]
[329360982,1718281016721,-25235.27254759,0.00014,2]
[329361053,1718281834567,-300.0,0.00013899,2]
[329361054,1718281834582,-2811.40281369,0.000139,2]
[329361055,1718281835148,-261.62382088,0.000139,2]
[329361056,1718281835174,-629.99914214,0.000139,2]
[329361057,1718281835189,-2474.23128598,0.000139,2]
[329361058,1718281835201,-167.59978789,0.000139,2]
[329361059,1718281835213,-152.46,0.0001399,2]
[329361060,1718281835224,-193.18760792,0.00013999,2]
[329361061,1718281835269,-1679.99519639,0.00014,2]
[329361062,1718281835296,-1213.93749004,0.00014,2]
[329361063,1718281835310,-334.61,0.00014,2]
[329361064,1718281835369,-317316.19399771,0.00014,2]
[329361065,1718281835382,-211189.49284238,0.00014,2]
[329361066,1718281835667,-300.0,0.00014,2]
[329361084,1718281839381,-250.39418971,0.00014,2]
[329361085,1718281839634,-1002.87945406,0.00014,2]
[329361086,1718281839655,-6952.55309619,0.00014,2]
[329361087,1718281839673,-568.38002002,0.00014,2]
[329361088,1718281839688,-1275.15327242,0.00014,2]
[329361089,1718281839705,-5641.70032621,0.00014,2]
[329361093,1718281846224,-842.89242602,0.00014,2]
[329361094,1718281846254,-33952.14,0.00014,2]
[329361096,1718281846870,-6985.61950846,0.00014,2]
[329361098,1718281846891,-442.99999994,0.00014,2]
[329361101,1718281846917,-1508.7644094,0.00014,2]
[329361102,1718281846945,-393.29106466,0.00014,2]
[329361103,1718281846961,-355.44999999,0.00014,2]
[329361104,1718281847184,-15904.08780445,0.00014,2]
[329361105,1718281847205,-1032.75,0.00014,2]
[329361106,1718281847497,-154776.44035464,0.00014,2]
[329361114,1718281854278,-353.68,0.00013999,2]
[329361120,1718281854897,-3057.2603482,0.00013999,2]
[329361121,1718281854910,-268402.73965176,0.00014,2]
[329361122,1718281854942,-710.733,0.00014,2]
[329361123,1718281855263,-333.13494006,0.00014,2]
[329361124,1718281855277,-4470.90884912,0.00014,2]
[329361126,1718281855617,-10287.06687749,0.00014,2]
[329361132,1718281855644,-179918.4896278,0.00014,2]
[329361135,1718281855669,-11353.05974957,0.00014,2]
[329361138,1718281855693,-633.11313744,0.00014,2]
[329361140,1718281855736,-578.32706232,0.00014,2]
[329361152,1718281855985,-4069.7644186,0.00014,2]
[329361155,1718281856012,-3218.69297135,0.00014,2]
[329361158,1718281856046,-1547.66053684,0.00014,2]
[329361173,1718281856413,-11356.31233505,0.00014,2]
[329361174,1718281856427,-106274.17757732,0.00014,2]
[329361175,1718281856447,-217300.27496424,0.00014,2]
[329361176,1718281856466,-1596.30903577,0.00014,2]
[329361187,1718281856758,-4071.3950287,0.00014,2]
[329361227,1718281857333,-6793.24879637,0.00014,2]
[329361229,1718281857372,-255.58512387,0.00014,2]
[329361230,1718281857386,-6413.67227921,0.00014,2]
[329361232,1718281857405,-2796.05999973,0.00014,2]
[329361235,1718281857453,-2841.01794751,0.00014,2]
[329361236,1718281857472,-1058.55765,0.00014,2]
[329361250,1718281857831,-0.00152826,0.00014,2]
[329361252,1718281857856,-10150.49538653,0.00014,2]